bitfinex-derivatives/quotes_ETHF0:USTF0_20260115
["timestamp","ask_amount","ask_price","bid_price","bid_amount"]
[1768509247809,0.939482,3289.5,3287.3,3.04503588]
[1768509248010,0.15202,3289.7,3287.3,3.04503588]
[1768509248206,0.9394838,3289.6,3287.3,3.04503588]
[1768509248408,0.9394838,3289.5,3287.3,3.04503588]
[1768509248602,1.0915238,3289.5,3287.3,0.00303588]
[1768509248799,0.9394838,3289.4,3287.3,0.00303588]
[1768509249901,1.0915238,3289.4,3287.3,0.00303588]
[1768509250102,0.9394838,3289.3,3287.3,0.00303588]
[1768509250809,12.9,3288.7,3287.3,0.00303588]
[1768509251003,12.90253548,3288.7,3287.3,0.00303588]
[1768509254107,0.94001934,3288.6,3287.3,0.00303588]
[1768509254306,12.90253548,3288.7,3287.3,0.00303588]
[1768509255705,0.00253548,3288.7,3287.3,0.00303588]
[1768509256299,12.9,3288.5,3287.3,0.00303588]
[1768509258914,12.9,3288.5,3287.3,0.1450723]
[1768509260033,0.00253548,3288.7,3287.3,0.1450723]
[1768509260411,12.9,3288.6,3287.3,0.1450723]
[1768509261513,12.9,3288.6,3287.4,3.042]
[1768509263219,12.9,3288.6,3287.4,3.17697708]
[1768509264823,12.9,3288.6,3287.4,3.042]
[1768509271019,12.9,3288.6,3287.4,3.19413]
[1768509271524,12.9,3288.6,3287.4,3.33768564]
[1768509272726,12.9,3288.6,3287.5,0.14355564]
[1768509273033,12.9,3288.6,3287.7,0.15211]
[1768509274533,12.9,3288.6,3287.4,3.042]
[1768509276233,0.93980923,3288.5,3287.3,0.00303588]
[1768509276433,0.00253548,3288.7,3287.3,0.00303588]
[1768509276625,0.93981906,3288.6,3287.3,0.00303588]
[1768509276823,12.9,3288.4,3287.3,0.00303588]
[1768509285342,0.00253548,3288.7,3287.3,0.14659152]
[1768509285734,12.9,3288.6,3287.3,0.14659152]
[1768509286949,12.9,3288.6,3287.3,0.29872152]
[1768509287242,12.9,3288.6,3287.4,0.14355564]
[1768509287436,0.00253548,3288.7,3287.6,0.29567564]
[1768509287637,0.152,3290.3,3287.7,0.14355564]
[1768509287940,12.9,3289.6,3287.9,0.14355564]
[1768509288145,12.9,3289.6,3287.9,3.18655564]
[1768509288544,12.90383946,3289.6,3287.9,3.18655564]
[1768509288738,12.90383946,3289.6,3288.0,0.14355564]
[1768509290646,12.90383946,3289.6,3288.0,0.29565564]
[1768509291348,12.90383946,3289.6,3287.4,0.15213]
[1768509291541,12.90383946,3289.6,3287.5,0.15212]
[1768509291944,0.00308789,3289.5,3287.5,0.15212]
[1768509292140,0.00308789,3289.5,3287.6,0.15212]
[1768509293350,0.00308789,3289.5,3287.7,0.15211]
[1768509293554,0.00308789,3289.3,3287.7,0.15211]
[1768509294052,0.00308789,3289.3,3287.8,0.15211]
[1768509298269,0.00308789,3289.3,3287.9,0.1521]
[1768509298564,0.00308789,3289.3,3288.0,0.1521]
[1768509298965,12.9,3289.2,3288.0,0.1521]
[1768509299365,12.90646,3289.2,3288.0,0.1521]
[1768509300458,0.0108862,3289.1,3287.4,0.13811871]
[1768509300662,0.0108862,3289.1,3287.4,3.19413]
[1768509303170,0.0108862,3289.1,3287.4,3.33224871]
[1768509303363,12.9,3289.2,3287.6,0.13811871]
[1768509304367,12.9,3289.2,3287.7,0.13811871]
[1768509304966,0.01121082,3289.1,3287.4,3.042]
[1768509305768,0.01121082,3289.1,3287.3,0.00303588]
[1768509306370,0.01034954,3288.9,3287.3,0.00303588]
[1768509307573,0.01034954,3288.9,3287.5,0.15212]
[1768509309979,0.01034954,3288.9,3287.3,0.00303588]
[1768509310177,0.00990866,3288.7,3287.3,0.00303588]
[1768509310471,0.00990866,3288.5,3287.3,0.00303588]
[1768509311774,12.90990866,3288.4,3287.3,0.00303588]
[1768509315888,0.00770332,3288.9,3287.3,0.00303588]
[1768509316180,0.00770332,3288.9,3287.3,0.14115459]
[1768509316483,12.9,3288.8,3287.3,0.14115459]
[1768509317781,0.00735966,3289.4,3287.3,0.14115459]
[1768509318166,12.9,3289.3,3287.3,0.14115459]
[1768509318872,12.9,3289.3,3287.4,0.13811871]
[1768509319283,12.9,3289.3,3287.4,0.29024871]
[1768509319475,12.9,3289.3,3287.5,0.13811871]
[1768509321983,12.9,3289.3,3287.7,0.15211]
[1768509322182,0.00735966,3289.4,3287.7,0.15211]
[1768509322375,0.00815638,3289.9,3288.2,0.14213175]
[1768509322569,0.00815638,3290.4,3288.5,0.14213175]
[1768509322776,12.9,3290.3,3288.5,0.14213175]
[1768509323285,12.9,3290.3,3288.7,0.15207]
[1768509323484,0.00815638,3290.0,3288.7,0.15207]
[1768509323686,12.9,3290.3,3288.7,0.15207]
[1768509324482,12.9,3290.3,3288.7,0.29420175]
[1768509324678,12.9,3290.3,3288.8,0.15206]
[1768509324882,12.9,3290.3,3288.8,0.29419175]
[1768509325082,12.9,3290.3,3288.9,0.15206]
[1768509325971,12.90215636,3290.3,3288.9,0.15206]
[1768509330482,12.91382924,3290.3,3288.9,0.15206]
[1768509333693,0.01246948,3290.2,3288.9,0.15206]
[1768509337886,12.90215636,3290.3,3288.6,0.14324817]
[1768509339700,12.90215636,3290.3,3289.1,0.15205]
[1768509340793,0.00215636,3290.3,3289.2,1.9199569]
[1768509340992,0.01144011,3291.0,3289.5,0.15203]
[1768509341193,0.01144011,3291.0,3289.5,0.29527817]
[1768509341501,12.91144011,3291.0,3289.5,0.14324817]
[1768509341897,12.9,3291.0,3289.5,0.14324817]
[1768509342099,12.90381619,3291.0,3289.5,0.14324817]
[1768509342290,0.0105925,3291.9,3290.1,0.14324817]
[1768509342486,0.0105925,3291.9,3290.3,0.14324817]
[1768509342693,0.0105925,3291.9,3290.4,3.19299]
[1768509342905,12.9,3291.8,3290.4,3.19299]
[1768509343403,12.90283086,3291.8,3290.4,3.19580291]
[1768509344301,12.90283086,3291.8,3290.5,0.15198]
[1768509344900,12.90283086,3291.8,3290.6,0.15198]
[1768509346904,0.00666023,3292.3,3291.0,0.15196]
[1768509347397,12.90666023,3292.3,3291.0,0.15196]
[1768509347799,12.90959294,3292.3,3291.1,0.15196]
[1768509348104,12.90959294,3292.3,3290.7,1.9199569]
[1768509348105,12.90293271,3292.3,3291.2,0.15195]
[1768509349004,0.00293271,3292.3,3291.2,0.15195]
[1768509350503,0.00293271,3292.3,3291.4,0.15194]
[1768509352605,12.9,3292.7,3291.6,0.15193]
[1768509352904,0.00509711,3294.7,3292.5,1.77670873]
[1768509353101,0.15174,3295.9,3293.2,0.15186]
[1768509353405,15.61126708,3295.8,3293.3,3.04]
[1768509353606,1.77670873,3295.3,3293.3,0.00240722]
[1768509353908,1.77670873,3294.8,3293.3,0.00240722]
[1768509354606,18.9,3294.7,3293.3,0.00240722]
[1768509355009,0.93374509,3294.6,3292.1,3.039]
[1768509355204,0.93374509,3294.6,3292.1,3.19091]
[1768509355205,1.77670873,3294.6,3292.1,3.19091]
[1768509355610,1.77670873,3294.1,3292.1,0.15191]
[1768509355994,0.1518,3294.6,3292.1,0.00361543]
[1768509356201,12.9,3294.7,3292.2,0.14021746]
[1768509358211,12.9,3294.7,3292.3,3.039]
[1768509359315,12.9,3294.7,3292.4,3.039]
[1768509360608,1.77670873,3294.3,3292.1,0.00361543]
[1768509360814,1.77670873,3293.8,3292.1,0.00361543]
[1768509361209,12.9,3293.7,3292.1,0.00361543]
[1768509363203,12.9,3293.7,3292.3,0.14021746]
[1768509363698,0.1518,3294.6,3292.3,0.14021746]
[1768509363896,1.77670873,3294.8,3292.3,0.14021746]
[1768509364103,1.77670873,3294.3,3292.3,0.14021746]
[1768509364310,12.9,3294.2,3292.3,0.14021746]
[1768509365915,12.9,3294.2,3292.5,0.14021746]
[1768509366411,12.9,3294.2,3292.3,3.038]
[1768509367104,12.9,3294.2,3292.3,3.17821746]
[1768509367303,12.9,3294.2,3292.4,0.14021746]
[1768509369614,0.15177,3295.1,3292.7,0.14021746]
[1768509369813,0.93409086,3295.0,3292.7,0.14021746]
[1768509370020,0.15177,3295.1,3292.7,0.14021746]
[1768509370210,12.9,3294.9,3292.7,0.14021746]
[1768509370611,12.9,3294.9,3292.7,0.29209746]
[1768509370811,12.9,3294.9,3292.8,0.14021746]
[1768509371412,0.93592713,3294.8,3292.8,0.14021746]
[1768509371718,12.9,3294.9,3292.8,0.14021746]
[1768509371920,0.93593379,3294.8,3292.8,0.14021746]
[1768509372118,12.9,3294.9,3292.8,0.14021746]
[1768509372320,0.93660888,3294.8,3292.8,0.14021746]
[1768509372518,12.9,3294.9,3292.8,0.14021746]
[1768509372720,0.93662414,3294.8,3292.8,0.14021746]
[1768509372918,12.9,3294.9,3292.8,0.14021746]
[1768509373119,0.93662605,3294.8,3292.8,0.14021746]
[1768509373419,12.9,3294.9,3292.8,0.14021746]
[1768509373615,0.93687845,3294.8,3292.8,0.14021746]
[1768509373817,12.9,3294.9,3292.8,0.14021746]
[1768509374011,0.93696825,3294.8,3292.8,0.14021746]
[1768509374216,12.9,3294.9,3292.8,0.14021746]
[1768509374417,0.93720953,3294.8,3292.8,0.14021746]
[1768509374617,12.9,3294.9,3292.8,0.14021746]
[1768509374817,0.93729425,3294.8,3292.8,0.14021746]
[1768509375014,0.93724706,3294.7,3292.3,0.14021746]
[1768509375212,0.93724706,3294.6,3292.4,3.038]
[1768509375418,12.9,3294.9,3292.3,0.14021746]
[1768509375419,0.93724706,3294.5,3292.3,0.14021746]
[1768509375721,0.93724706,3294.4,3292.4,3.038]
[1768509375922,0.93724706,3294.3,3292.4,3.038]
[1768509376122,0.15179,3294.7,3292.4,3.038]
[1768509376327,0.9376267,3294.6,3292.4,3.038]
[1768509376520,12.9,3294.2,3292.4,3.038]
[1768509377222,12.9,3294.2,3292.3,3.33011746]
[1768509378225,12.9,3294.2,3292.4,0.14021746]
[1768509378528,12.9,3294.2,3293.0,0.14021746]
[1768509378715,2.72344089,3295.5,3293.0,0.14021746]
[1768509378716,2.15664744,3295.4,3293.1,0.14021746]
[1768509379024,3.09578757,3295.4,3293.1,0.14021746]
[1768509379227,12.9,3294.6,3293.1,0.14021746]
[1768509380628,0.94010949,3294.5,3293.1,0.14021746]
[1768509380925,12.9,3294.6,3293.1,0.14021746]
[1768509381429,0.9404548,3294.5,3293.1,0.14021746]
[1768509381627,12.9,3294.6,3293.1,0.14021746]
[1768509381826,0.94050536,3294.5,3293.1,0.14021746]
[1768509382129,5.96946469,3295.9,3293.6,0.13718224]
[1768509382324,0.94109414,3295.7,3293.8,0.13718224]
[1768509382626,13.84109414,3295.6,3293.8,0.13718224]
[1768509382818,0.94109414,3295.5,3293.8,0.13718224]
[1768509383018,12.9,3295.6,3293.8,0.13718224]
[1768509384930,0.15171,3296.4,3293.8,0.13718224]
[1768509385122,0.93632978,3295.7,3293.8,0.13718224]
[1768509385323,12.90346556,3295.8,3293.8,0.13718224]
[1768509385624,0.93600258,3295.7,3293.8,0.13718224]
[1768509385826,0.93600258,3295.6,3293.8,0.13718224]
[1768509386129,12.90346556,3295.8,3293.8,0.13718224]
[1768509386329,0.93574009,3295.7,3293.8,0.13718224]
[1768509386531,12.90346556,3295.8,3293.8,0.13718224]
[1768509386721,0.93574394,3295.7,3293.8,0.13718224]
[1768509387020,12.90346556,3295.8,3293.8,0.13718224]
[1768509387225,0.93572576,3295.7,3293.8,0.13718224]
[1768509387422,12.90346556,3295.8,3293.8,0.13718224]
[1768509387622,0.93239172,3295.7,3293.8,0.13718224]
[1768509387821,12.90346556,3295.8,3293.8,0.13718224]
[1768509388131,0.9324557,3295.7,3293.8,0.13718224]
[1768509388430,12.90346556,3295.8,3293.8,0.13718224]
[1768509388431,12.90346556,3295.8,3293.8,3.17418224]
[1768509388729,0.93204044,3295.7,3293.8,3.17418224]
[1768509388930,12.90346556,3295.8,3293.8,3.17418224]
[1768509389130,0.93203094,3295.7,3293.8,3.17418224]
[1768509389331,12.90346556,3295.8,3293.8,3.17418224]
[1768509389528,0.9318502,3295.7,3293.8,3.17418224]
[1768509389732,12.90346556,3295.8,3293.9,0.14032909]
[1768509390033,0.93182749,3295.7,3293.6,0.15184]
[1768509390226,0.93182749,3295.6,3293.6,0.15184]
[1768509390419,12.90346556,3295.8,3293.7,0.14032909]
[1768509390420,0.93182749,3295.5,3293.7,0.14032909]
[1768509390721,0.93182749,3295.4,3293.7,0.14032909]
[1768509390918,0.15175,3295.7,3293.7,0.14032909]
[1768509391122,0.15176,3295.5,3293.1,0.14032909]
[1768509391339,0.93166957,3295.4,3293.2,0.14032909]
[1768509392035,12.9,3295.3,3293.2,0.14032909]
[1768509392228,0.93166957,3295.2,3293.2,0.14032909]
[1768509392626,0.93166957,3295.2,3293.4,0.29217909]
[1768509392824,0.93166957,3295.2,3293.5,0.14032909]
[1768509393631,0.93166957,3295.2,3293.6,0.14032909]
[1768509397233,0.15176,3295.5,3293.6,0.14032909]
[1768509397536,12.9,3295.1,3293.6,0.14032909]
[1768509408039,12.9,3295.1,3293.7,3.037]
[1768509408238,12.9,3295.1,3293.7,3.17732909]
[1768509408434,12.9,3295.1,3293.7,0.14032909]
[1768509410639,12.9,3295.1,3293.3,0.15185]
[1768509411340,12.9,3295.1,3293.4,0.13764554]
[1768509411543,0.934043,3295.0,3293.4,0.13764554]
[1768509411737,12.9,3295.1,3293.4,0.28949554]
[1768509411938,12.9,3295.1,3293.5,0.13764554]
[1768509416147,0.93445798,3295.0,3292.9,0.13764554]
[1768509416354,1.08623798,3294.9,3292.9,0.13764554]
[1768509416546,2.15664744,3295.4,3291.8,16.25504103]
[1768509416547,0.1518,3294.6,3292.4,0.13764554]
[1768509416747,3.046,3294.4,3292.4,0.13764554]
[1768509416954,13.83445798,3294.3,3292.4,0.13764554]
[1768509417244,0.93445798,3294.2,3292.4,0.13764554]
[1768509417553,12.9,3294.3,3292.4,0.13764554]
[1768509417746,0.93331434,3294.2,3292.4,0.13764554]
[1768509418051,12.9,3294.3,3292.4,0.13764554]
[1768509418351,0.93289358,3294.2,3292.4,0.13764554]
[1768509418551,0.93289358,3294.1,3292.1,0.00361543]
[1768509418748,0.93289358,3294.0,3292.1,0.14126097]
[1768509418944,0.93289358,3293.9,3292.1,0.14126097]
[1768509419249,0.93168938,3293.8,3292.1,0.14126097]
[1768509419452,0.93154277,3293.7,3292.1,0.00361543]
[1768509419651,0.15185,3293.5,3292.1,0.00361543]
[1768509419853,1.08339277,3293.4,3292.1,0.00361543]
[1768509420041,1.08340277,3293.3,3291.1,0.13764554]
[1768509420244,0.93154277,3293.2,3291.1,0.13764554]
[1768509420540,0.00255381,3293.4,3291.2,0.13764554]
[1768509420857,0.93165983,3293.3,3291.2,0.13764554]
[1768509421154,0.00255381,3293.4,3291.2,0.14099107]
[1768509421155,1.08351983,3293.2,3291.2,0.14099107]
[1768509421449,1.08352983,3293.1,3291.2,0.14099107]
[1768509421751,0.93165983,3293.0,3291.2,0.00334553]
[1768509422050,0.93165983,3292.9,3291.2,0.00334553]
[1768509422245,0.93165983,3292.8,3291.2,0.14099107]
[1768509422453,12.9,3292.7,3291.2,0.14099107]
[1768509424352,12.9,3292.7,3291.2,0.00334553]
[1768509425553,13.05188,3292.7,3291.2,0.00334553]
[1768509425956,0.15189,3292.6,3290.7,0.13764554]
[1768509426949,0.15189,3292.6,3290.7,0.14147425]
[1768509431360,1.92555741,3292.6,3290.7,0.14147425]
[1768509432358,12.9,3292.7,3290.7,0.14147425]
[1768509442969,12.9,3292.7,3290.7,0.29345425]
[1768509443170,12.9,3292.7,3290.9,0.2891254]
[1768509443470,12.9,3292.7,3291.0,0.1371554]
[1768509447273,12.9,3292.7,3291.2,0.13358631]
[1768509447462,0.00255381,3293.4,3291.2,0.13358631]
[1768509447663,0.93536811,3293.3,3291.2,0.13358631]
[1768509447971,13.83536811,3293.2,3291.2,0.13358631]
[1768509448172,0.93622884,3293.1,3291.2,0.13358631]
[1768509448475,12.9,3293.2,3291.2,0.13358631]
[1768509448672,0.93610601,3293.1,3291.5,0.13358631]
[1768509448867,12.9,3293.2,3291.5,0.13358631]
[1768509449068,0.93616266,3293.1,3291.5,0.13358631]
[1768509449372,12.9,3293.2,3291.5,0.13358631]
[1768509449567,0.93647626,3293.1,3291.7,0.13358631]
[1768509449772,12.9,3293.2,3291.8,0.13358631]
[1768509450565,12.9,3293.2,3291.8,0.28550631]
[1768509450765,0.00255381,3293.4,3291.9,0.13358631]
[1768509452573,0.00255381,3293.4,3291.9,0.28550631]
[1768509452879,0.00255381,3293.4,3292.4,0.13358631]
[1768509459076,0.00255381,3293.4,3291.9,0.28550631]
[1768509459383,0.00255381,3293.4,3292.0,0.13358631]
[1768509460480,0.00255381,3293.4,3292.0,0.13358631]
[1768509463283,0.00255381,3293.4,3292.2,0.13358631]
[1768509466281,1.23036008,3293.0,3292.2,0.13358631]
[1768509466492,1.23036008,3292.8,3291.8,0.13358631]
[1768509466780,1.23036008,3293.0,3291.8,0.13358631]
[1768509466972,12.9,3292.9,3292.1,0.13358631]
[1768509468675,1.23291389,3293.4,3292.1,0.13358631]
[1768509469075,12.9,3293.3,3292.1,0.13358631]
[1768509472677,12.9,3293.3,3291.4,0.13113056]
[1768509473183,12.9,3293.3,3291.6,0.13113056]
[1768509482496,1.77180951,3292.7,3291.1,0.13113056]
[1768509482896,1.77180951,3293.0,3291.1,0.13113056]
[1768509483196,0.00255381,3293.4,3291.1,0.13113056]
[1768509483197,0.00255381,3293.4,3291.2,0.13113056]
[1768509483397,0.9355776,3293.3,3291.2,0.13113056]
[1768509483587,12.9,3293.2,3291.2,0.13113056]
[1768509484392,12.9,3293.2,3291.0,1.77180951]
[1768509484393,2.7073487,3293.1,3291.4,0.13113056]
[1768509484599,0.93553919,3293.0,3291.4,0.13113056]
[1768509484803,0.93553919,3292.9,3291.4,0.13113056]
[1768509485096,1.92367951,3293.1,3291.4,0.13113056]
[1768509485290,1.08725687,3293.0,3291.4,0.13113056]
[1768509485489,0.93538687,3292.9,3291.4,0.13113056]
[1768509485689,0.15187,3293.0,3291.4,0.13113056]
[1768509485994,0.93516974,3292.9,3291.4,0.13113056]
[1768509486194,0.15187,3293.0,3291.4,0.13113056]
[1768509486492,0.93491728,3292.9,3291.4,0.13113056]
[1768509486697,0.15187,3293.0,3291.4,0.13113056]
[1768509486898,0.93503877,3292.9,3291.4,0.13113056]
[1768509487198,0.15187,3293.0,3291.4,0.13113056]
[1768509487399,0.93497274,3292.9,3291.4,0.13113056]
[1768509487599,0.15187,3293.0,3291.4,0.13113056]
[1768509487897,0.9349752,3292.9,3291.4,0.13113056]
[1768509488084,0.15187,3293.0,3291.4,0.13113056]
[1768509488397,0.93537372,3292.9,3291.4,0.13113056]
[1768509488598,0.15187,3293.0,3291.4,0.13113056]
[1768509488896,0.93546603,3292.9,3291.4,0.13113056]
[1768509489098,12.9,3292.8,3291.4,0.13113056]
[1768509489301,1.23117726,3292.4,3291.4,0.13113056]
[1768509490194,12.9,3292.8,3291.6,0.13113056]
[1768509490590,12.9,3292.8,3291.8,1.23117726]
[1768509490898,12.9,3292.8,3291.9,0.13113056]
[1768509491496,12.9,3292.8,3288.8,4.96917898]
[1768509491497,0.14422705,3290.9,3288.8,4.96917898]
[1768509491690,1.77212802,3290.6,3287.9,0.1521]
[1768509491886,1.77212802,3290.1,3287.9,0.1521]
[1768509492101,1.77212802,3290.1,3288.0,3.039]
[1768509492596,1.77568245,3290.1,3288.0,3.04158083]
[1768509492795,1.77568245,3290.1,3288.1,3.039]
[1768509493003,1.81618016,3290.1,3288.2,3.039]
[1768509493191,0.00355443,3290.1,3288.2,3.039]
[1768509493391,0.00355443,3290.1,3288.2,3.17013056]
[1768509494599,12.9,3290.0,3288.2,3.17013056]
[1768509497103,12.9,3290.0,3288.2,0.13113056]
[1768509497499,12.9,3290.0,3288.3,3.04]
[1768509500505,12.9,3290.0,3288.4,3.04]
[1768509501800,12.9,3290.0,3288.2,0.13113056]
[1768509502103,12.9,3290.0,3288.5,3.04]
[1768509507999,13.09360517,3290.0,3288.2,0.13113056]
[1768509508299,13.09360517,3290.0,3288.6,3.041]
[1768509508501,13.09360517,3290.0,3288.7,3.041]
[1768509511505,12.9,3290.0,3288.8,0.14279208]
[1768509512099,0.00355443,3290.1,3289.0,0.14279208]
[1768509512297,0.15196,3291.1,3289.0,0.14279208]
[1768509512900,0.28415151,3291.1,3289.0,0.14279208]
[1768509513107,12.8,3291.0,3289.0,0.14279208]
[1768509514613,0.13219151,3290.9,3289.0,0.14279208]
[1768509514805,0.13219151,3290.9,3289.1,3.041]
[1768509515507,0.13219151,3290.8,3288.4,0.14279208]
[1768509515707,0.13219151,3290.8,3288.6,0.14279208]
[1768509518705,12.8,3290.7,3288.6,0.14279208]
[1768509520913,12.93219151,3290.7,3288.6,0.14279208]
[1768509521314,0.95816202,3290.6,3288.6,0.14279208]
[1768509521509,0.95816202,3290.5,3288.6,0.14279208]
[1768509521716,12.93219151,3290.7,3288.4,0.15208]
[1768509521717,12.93219151,3290.7,3288.8,0.14279208]
[1768509521901,0.95812819,3290.6,3288.8,0.14279208]
[1768509522107,0.95812819,3290.5,3288.8,0.14279208]
[1768509522303,12.93219151,3290.7,3288.8,0.14279208]
[1768509522507,0.95802788,3290.6,3288.8,0.14279208]
[1768509522707,0.95802788,3290.5,3288.8,0.14279208]
[1768509523012,12.93219151,3290.7,3288.8,0.14279208]
[1768509523214,0.95802725,3290.6,3288.8,0.14279208]
[1768509523409,12.93219151,3290.7,3288.8,0.14279208]
[1768509523616,0.95796866,3290.6,3288.8,0.14279208]
[1768509523916,12.93219151,3290.7,3288.8,0.14279208]
[1768509524107,0.95796892,3290.6,3288.8,0.14279208]
[1768509524310,12.93219151,3290.7,3288.8,0.14279208]
[1768509524508,0.95790747,3290.6,3288.8,0.14279208]
[1768509524711,12.93219151,3290.7,3288.8,0.14279208]
[1768509525018,0.95790518,3290.6,3288.8,0.14279208]
[1768509525215,12.93219151,3290.7,3288.8,0.14279208]
[1768509525421,0.95789712,3290.6,3288.8,0.14279208]
[1768509525717,12.93219151,3290.7,3288.8,0.14279208]
[1768509525920,0.95790625,3290.6,3288.8,0.14279208]
[1768509526119,12.8,3290.7,3288.8,0.14279208]
[1768509527520,12.93219151,3290.7,3288.8,0.14279208]
[1768509527817,0.13219151,3290.6,3288.9,3.041]
[1768509530824,12.8,3290.7,3289.0,0.14279208]
[1768509533126,12.93909715,3290.7,3289.0,0.14279208]
[1768509533425,12.93909715,3290.7,3289.1,3.041]
[1768509533426,0.13909715,3290.5,3289.1,3.041]
[1768509533622,0.13909715,3290.5,3289.2,3.041]
[1768509534326,0.13909715,3290.5,3289.3,3.041]
[1768509536124,0.13909715,3290.5,3288.6,0.29404017]
[1768509536321,0.13909715,3290.5,3289.4,3.041]
[1768509537326,0.95910372,3290.4,3289.4,3.041]
[1768509537516,0.13909715,3290.5,3289.4,3.041]
[1768509537716,0.95829847,3290.4,3289.4,3.041]
[1768509537913,0.13909715,3290.5,3289.4,3.041]
[1768509538423,0.95863159,3290.4,3289.4,3.041]
[1768509538623,0.13909715,3290.5,3289.4,3.041]
[1768509538823,0.95863388,3290.4,3289.4,3.041]
[1768509539028,0.13909715,3290.5,3289.4,3.041]
[1768509539329,0.95863287,3290.4,3289.4,3.041]
[1768509539525,0.13909715,3290.5,3289.4,3.041]
[1768509539734,0.95903611,3290.4,3289.4,3.041]
[1768509540027,0.13909715,3290.5,3289.4,3.041]
[1768509540220,1.09813978,3290.4,3288.8,0.15206]
[1768509540529,1.09813978,3290.4,3288.6,0.14197017]
[1768509540530,0.13909715,3290.2,3288.9,3.041]
[1768509540727,0.13909715,3290.2,3289.0,3.041]
[1768509540728,0.95904263,3290.1,3289.0,3.041]
[1768509541034,13.75904263,3290.1,3289.0,3.041]
[1768509541222,0.9601369,3290.0,3289.0,3.041]
[1768509541430,1.09895134,3289.9,3288.0,0.00258083]
[1768509541623,1.09895134,3289.8,3288.1,3.041]
[1768509541930,0.13909715,3289.8,3288.1,3.041]
[1768509542427,0.13909715,3289.8,3288.1,3.18297017]
[1768509542632,0.13909715,3289.8,3288.2,0.14197017]
[1768509542827,0.95860671,3289.7,3288.3,3.041]
[1768509543031,1.09770386,3289.6,3288.3,3.041]
[1768509543234,0.13909715,3289.6,3288.3,3.041]
[1768509544731,0.13909715,3289.6,3288.0,0.00258083]
[1768509544932,0.13909715,3289.6,3288.1,3.041]
[1768509545235,0.13909715,3289.6,3288.0,0.00258083]
[1768509545437,0.15202,3289.9,3288.1,3.18297017]
[1768509545729,0.95741382,3289.8,3288.2,0.14197017]
[1768509545935,0.15202,3289.9,3288.2,0.14197017]
[1768509546628,12.8,3290.1,3288.2,0.14197017]
[1768509547638,12.8,3290.1,3288.4,0.14197017]
[1768509553442,1.23300575,3290.0,3288.6,1.23300575]
[1768509554142,1.23300575,3290.0,3288.4,0.14197017]
[1768509554440,1.23300575,3289.8,3288.4,1.37497592]
[1768509554640,1.23300575,3289.8,3288.5,0.14197017]
[1768509554942,12.8,3290.1,3289.1,1.23300575]
[1768509555740,14.03300575,3290.1,3288.9,0.14197017]
[1768509555936,1.23300575,3289.7,3289.0,3.041]
[1768509556142,1.23300575,3289.7,3288.5,0.29405017]
[1768509556451,1.23300575,3289.7,3288.6,3.041]
[1768509556643,1.23300575,3289.9,3288.6,3.041]
[1768509558043,1.23300575,3290.0,3288.6,3.041]
[1768509559845,1.23300575,3289.8,3288.6,3.041]
[1768509561043,1.23300575,3289.8,3288.7,3.041]
[1768509561232,1.23300575,3289.8,3288.8,3.041]
[1768509566043,1.23300575,3289.5,3288.7,3.041]
[1768509566632,12.8,3289.4,3288.7,3.041]
[1768509568032,12.8,3289.4,3288.0,0.00258083]
[1768509568033,1.23300575,3289.0,3288.0,0.00258083]
[1768509568538,1.23300575,3289.0,3288.1,3.041]
[1768509568740,1.23300575,3289.0,3288.2,3.041]
[1768509569338,1.23300575,3289.0,3288.0,0.00258083]
[1768509569543,1.23300575,3288.7,3288.0,0.00258083]
[1768509569742,1.2356887,3288.7,3288.0,0.00258083]
[1768509570649,0.00268295,3288.7,3288.0,0.00258083]
[1768509570842,0.00268295,3288.7,3288.0,3.04358083]
[1768509572251,12.8,3288.6,3288.0,3.04358083]
[1768509573655,0.00268295,3288.7,3288.0,3.04358083]
[1768509574247,0.00268295,3288.7,3288.1,3.042]
[1768509574448,11.5,3288.6,3288.1,3.042]
[1768509575153,11.5,3288.6,3288.0,0.00258083]
[1768509575454,11.5,3288.6,3288.1,3.042]
[1768509576154,0.13994975,3289.3,3288.0,0.00258083]
[1768509576365,0.13994975,3289.3,3288.1,4.27500575]
[1768509577149,11.4,3289.2,3288.1,4.27500575]
[1768509577960,11.53994975,3289.2,3288.1,4.27500575]
[1768509578158,11.53994975,3289.2,3288.2,3.042]
[1768509581564,1.38497575,3291.0,3289.0,1.23300575]
[1768509581769,1.23300575,3290.7,3289.2,1.23300575]
[1768509582364,1.23538899,3290.7,3289.2,1.23300575]
[1768509582561,0.00238324,3290.7,3289.2,1.23300575]
[1768509582765,1.23300575,3290.5,3289.2,1.23300575]
[1768509583469,1.23300575,3289.9,3288.3,0.29335803]
[1768509583672,1.3729555,3289.9,3288.4,3.042]
[1768509583866,1.3729555,3289.9,3288.6,1.23300575]
[1768509584075,0.13994975,3290.3,3288.6,1.23300575]
[1768509584374,1.23300575,3290.2,3288.6,1.23300575]
[1768509584669,1.23300575,3290.2,3288.8,1.23300575]
[1768509585368,0.13994975,3290.3,3288.4,3.042]
[1768509585369,0.13994975,3290.3,3288.6,0.14126803]
[1768509586674,0.13994975,3290.3,3288.6,0.29333803]
[1768509587372,0.13994975,3290.3,3288.7,3.041]
[1768509587667,0.13994975,3290.3,3288.6,0.29333803]
[1768509587870,0.13994975,3290.3,3288.7,3.041]
[1768509588170,0.13994975,3290.3,3288.8,3.041]
[1768509589172,0.13994975,3290.3,3288.4,0.15208]
[1768509589474,0.13994975,3290.3,3288.5,3.041]
[1768509590862,0.13994975,3290.3,3288.5,3.17512726]
[1768509591061,0.15436324,3290.7,3288.6,0.13412726]
[1768509591266,0.13237267,3290.2,3288.1,0.1521]
[1768509591473,0.13237267,3290.0,3288.5,3.041]
[1768509591674,0.13237267,3289.8,3288.5,3.041]
[1768509592078,0.13237267,3289.8,3288.3,3.041]
[1768509592572,0.13237267,3289.6,3288.0,3.04358083]
[1768509593173,0.13237267,3289.6,3288.0,0.00258083]
[1768509593372,0.13237267,3289.6,3288.1,3.041]
[1768509597780,0.13237267,3289.6,3288.0,0.00258083]
[1768509597984,0.13237267,3289.6,3288.1,3.042]
[1768509599479,0.13237267,3289.5,3288.0,0.00258083]
[1768509599686,0.13237267,3289.3,3287.1,0.33919973]
[1768509599882,0.13237267,3289.3,3287.2,3.042]
[1768509600081,0.13237267,3289.1,3287.2,3.042]
[1768509600385,0.13237267,3289.1,3287.2,3.17612726]